Cogmind - Beta 10.2 @@@ ROGUE MODE // 2020.12.27 @ 14:42:29 Player: SureStep Result: Destroyed by Y-45 Defender with Beam Rifle Performance ------------- Evolutions (1) 500 Regions Visited (2) 400 Robots Destroyed (33) 165 Value Destroyed (538) 538 Prototype IDs (2) 40 Alien Tech Used (0) 0 Bonus (6) 6 TOTAL SCORE: 1649 Bonus ------- High Alert Combat Kills 6 Cogmind --------- Core Integrity 0/400 Matter 247/300 Energy 64/100 System Corruption 0% Temperature Cool (9) Movement Core (50) Location -9/Materials Parts ------- > --- POWER (1) -------- (None) > --- PROPULSION (4) --- (None) > --- UTILITY (2) ------ ECM Suite > --- WEAPON (2) ------- (None) > --- INVENTORY (4) ---- Beam Cannon Peak State ------------ > --- POWER ------------ Improved Ion Engine > --- PROPULSION ------- Flight Unit Flight Unit Flight Unit Flight Unit > --- UTILITY ---------- Heat Sink ECM Suite > --- WEAPON ----------- Beam Cannon Grenade Launcher > --- INVENTORY -------- Beam Cannon [Rating: 10] Favorites ----------- Power Light Ion Engine Engine Light Ion Engine Propulsion Flight Unit Wheel Wheel Flight Unit Flight Unit Utility ECM Suite Device ECM Suite Weapon Grenade Launcher Energy Gun Medium Laser Energy Cannon Beam Cannon Launcher Grenade Launcher Build | -11 -10 -9 ------- Run | Scr Mat Mat Slots Evolved 2 | . . 2 Power . | . . . Propulsion 2 | . . 2 Utility . | . . . Weapon . | . . . Parts Attached 23 | 6 8 9 Power 3 | 2 . 1 Engine 3 | 2 . 1 Core . | . . . Reactor . | . . . Propulsion 11 | 2 3 6 Treads . | . . . Leg . | . . . Wheel 3 | 2 1 . Hover . | . . . Flight 8 | . 2 6 Utility 4 | 1 2 1 Device 4 | 1 2 1 Storage . | . . . Processor . | . . . Hackware . | . . . Protection . | . . . Artifact . | . . . Weapon 5 | 1 3 1 Energy Gun 1 | 1 . . Energy Cannon 2 | . 1 1 Ballistic Gun . | . . . Ballistic Cannon . | . . . Launcher 2 | . 2 . Special Weapon . | . . . Impact Weapon . | . . . Slashing Weapon . | . . . Piercing Weapon . | . . . Special Melee Weapon . | . . . Unidentified Prototypes . | . . . Parts Lost 8 | . . 8 Power 1 | . . 1 Propulsion 4 | . . 4 Utility 1 | . . 1 Weapon 2 | . . 2 Highest Loss Streak 8 | . . 8 Average Slot Usage (%) 87 | . 97 83 Engine 11 | . 14 10 Wheel 6 | . 21 . Flight 22 | . 6 29 Device 23 | . 27 21 Energy Gun 2 | . 7 . Energy Cannon 9 | . 6 10 Launcher 11 | . 12 10 Naked Turns . | . . . Heaviest Build 16 | 7 11 16 Greatest Support 20 | 20 20 16 Greatest Overweight (x) 2 | 1 2 1 Average Overweight (x) . | . . . Largest Inventory Capacity 4 | 4 4 4 Average Capacity 4 | 4 4 4 Most Carried 4 | 3 4 4 Average Carried 2 | . 2 2 Final Capacity 4 | 4 4 4 Final Carried 4 | 1 4 1 Class Distribution -------------------- 94% | Mutant 5% | Sprinter Dominant Class ---------------- Mutant | -10/Materials Mutant | -9/Materials Resources | -11 -10 -9 ----------- Run | Scr Mat Mat Matter Collected 542 | 260 190 92 Remotely . | . . . Salvage Created 620 | 87 315 218 Parts 55 | 4 32 19 Haulers Intercepted 3 | . 2 1 Recyclers Shooed 1 | . 1 . Parts Field Recycled . | . . . Retrieved Matter . | . . . Parts Self-Destructed . | . . . Prevented . | . . . Kills | -11 -10 -9 ------- Run | Scr Mat Mat Combat Hostiles Destroyed 20 | . 12 8 Cannons 5 | . 1 4 AOE 15 | . 11 4 Classes Destroyed 9 | 2 6 1 Worker 2 | . 1 1 Builder 3 | . 2 1 Tunneler 1 | 1 . . Hauler 3 | . 2 1 Recycler 2 | 1 1 . Watcher 2 | . 1 1 Swarmer 12 | . 8 4 Grunt 6 | . 4 2 Sentry 2 | . . 2 Best Kill Streak 14 | 1 14 6 Combat Bots Only 6 | . 6 4 Max Kills in Single Turn 4 | 1 3 4 Gunslinging . | . . . Exploded 3 | . 3 2 Melee . | . . . Uniques/NPCs Destroyed . | . . . Combat | -11 -10 -9 -------- Run | Scr Mat Mat Damage Taken 932 | . 152 780 Core 416 | . 16 400 Absorbed by Shields . | . . . Core Remaining (%) 96 | 100 93 . Volleys Fired 54 | 8 25 21 Largest 2 | 1 2 2 Hottest 98 | 50 90 98 Shots Fired 75 | 8 36 31 Gun 19 | 8 11 . Cannon 35 | . 14 21 Launcher 21 | . 11 10 Special . | . . . Kinetic . | . . . Thermal 54 | 8 25 21 Explosive 21 | . 11 10 Electromagnetic . | . . . Robot Hit Streak 4 | 1 4 4 Robot Miss Streak 7 | 1 7 5 Penetration Max . | . . . Secondary Targets . | . . . Shots Hit Robots 34 | 3 17 14 Core Hits 40 | 3 24 13 Critical Hits 1 | . . 1 Critical Kills . | . . . Critical Parts Destroyed 1 | . . 1 Melee Attacks . | . . . Impact . | . . . Slashing . | . . . Piercing . | . . . Sneak Attacks . | . . . Combat Hostiles . | . . . Follow-up Attacks . | . . . Damage Inflicted 1782 | 49 1103 630 Guns 151 | 49 102 . Cannons 285 | . 71 214 Explosions 1342 | . 930 412 Melee . | . . . Ramming 4 | . . 4 Kinetic . | . . . Thermal 436 | 49 173 214 Explosive 1287 | . 875 412 Electromagnetic 55 | . 55 . Impact . | . . . Slashing . | . . . Piercing . | . . . Highest Corruption . | . . . Average Corruption . | . . . Corruption Purged . | . . . Overload Shots . | . . . Overflow Damage 61 | . 61 . Projectiles . | . . . Explosions 61 | . 61 . Melee . | . . . Knockbacks . | . . . Impact . | . . . Kinetic . | . . . Secondary . | . . . Self-Inflicted Damage 56 | . 54 2 Shots 2 | . 2 . Rammed 1 | . . 1 Targets Rammed 1 | . . 1 Kicked . | . . . Crushed . | . . . Highest Temperature 80 | 60 80 52 Average Temperature 23 | 27 24 19 Received Heat Transfer 222 | . 18 204 Siege Activations . | . . . Robots Corrupted . | . . . Combat Hostiles . | . . . Parts Fried . | . . . Impact Corruptions . | . . . Robots Melted . | . . . Combat Hostiles . | . . . Parts Melted . | . . . Heat Transferred 999 | 148 444 407 Parts Sabotaged . | . . . Parts Stolen . | . . . Parts Stripped . | . . . Power Chain Reactions . | . . . Missiles Intercepted . | . . . Alert | -11 -10 -9 ------- Run | Scr Mat Mat Peak Influence 503 | 10 503 330 Initial 171 | . 6 171 Average 198 | 4 247 194 Maximum Alert Level 2 | . 2 1 Low Security (%) 67 | 100 45 74 Level 1 29 | . 44 25 Level 2 3 | . 10 . Level 3 . | . . . Level 4 . | . . . Level 5 . | . . . High Security . | . . . Max Security . | . . . Squads Dispatched 5 | . 2 3 Investigation 3 | . 1 2 Extermination . | . . . Reinforcement 2 | . 1 1 Assault . | . . . Garrison . | . . . Intercept . | . . . Construction Impeded 1 | . . 1 Haulers Reinforced . | . . . Stealth | -11 -10 -9 --------- Run | Scr Mat Mat Distress Signals 2 | . 1 1 Communications Jammed . | . . . Distress Signals . | . . . Times Spotted 36 | . 20 16 Peak Tracking Total 6 | . 5 6 Tactical Retreats 4 | . 3 1 Traps | -11 -10 -9 ------- Run | Scr Mat Mat Traps Triggered . | . . . Indirectly . | . . . Trap Hack Attempts . | . . . Triggered . | . . . Disarmed . | . . . Reprogrammed . | . . . Reused . | . . . Traps Extracted . | . . . Installed . | . . . Triggered . | . . . Machines | -11 -10 -9 ---------- Run | Scr Mat Mat Machines Disabled 5 | . 4 1 Max in Single Turn 2 | . 2 1 Machines Sabotaged . | . . . Garrisons Compromised . | . . . Overloaded Fab Kills . | . . . Fab Network Shutdowns . | . . . Hacking | -11 -10 -9 --------- Run | Scr Mat Mat Machines Accessed 6 | . 3 3 Terminals 6 | . 3 3 Fabricators . | . . . Repair Stations . | . . . Recycling Units . | . . . Scanalyzers . | . . . Garrison Access . | . . . Total Hacks 21 | . 13 8 Successful 8 | . 6 2 Failed 13 | . 7 6 Catastrophic . | . . . Database Lockouts . | . . . Manual . | . . . Terminals 21 | . 13 8 Fabricators . | . . . Repair Stations . | . . . Recycling Units . | . . . Scanalyzers . | . . . Garrison Access . | . . . Terminal Hacks 8 | . 6 2 Prototype ID Bank 1 | . . 1 Alert Level 1 | . 1 . Unreport Threat 1 | . 1 . Transport Status 1 | . 1 . Hauler Manifests 1 | . 1 . Zone Layout 3 | . 2 1 Fabricator Hacks . | . . . Repair Station Hacks . | . . . Recycling Unit Hacks . | . . . Scanalyzer . | . . . Garrison Access Hacks . | . . . Unauthorized Hacks . | . . . Terminals . | . . . Fabricators . | . . . Repair Stations . | . . . Recycling Units . | . . . Scanalyzers . | . . . Garrison Access . | . . . Data Cores Recovered . | . . . Used . | . . . Hacking Detections 5 | . 2 3 Full Trace Events 5 | . 2 3 Feedback Events . | . . . Feedback Blocked . | . . . Robot Schematics Acquired . | . . . Robots Built . | . . . Matter . | . . . Time . | . . . Total Robot Build Rating . | . . . Part Schematics Acquired . | . . . Parts Built . | . . . Matter . | . . . Time . | . . . Total Part Build Rating . | . . . Parts Repaired . | . . . Time . | . . . Parts Recycled . | . . . Recycled Matter . | . . . Retrieved Matter . | . . . Retrieved Components . | . . . Parts Scanalyzed . | . . . Part Schematics Acquired . | . . . Parts Damaged . | . . . Bothacking | -11 -10 -9 ------------ Run | Scr Mat Mat Used RIF Installer . | . . . Robots Hacked . | . . . Non-combat . | . . . Combat . | . . . Robot Hacks Applied . | . . . Relay Couplers Released . | . . . Robots Rewired . | . . . Allies Hacked . | . . . Hacks Repelled . | . . . Allies | -11 -10 -9 -------- Run | Scr Mat Mat Total Allies . | . . . Largest Group . | . . . Highest-Rated Group . | . . . Highest-Rated Ally . | . . . Total Orders . | . . . Ally Attacks . | . . . Total Damage . | . . . Kills . | . . . Allies Corrupted . | . . . Allies Melted . | . . . Intel | -11 -10 -9 ------- Run | Scr Mat Mat Robot Analysis Total . | . . . Derelict Logs Recovered . | . . . Drone Launches . | . . . Drone Recoveries . | . . . Exploration | -11 -10 -9 ------------- Run | Scr Mat Mat Turns Passed 1127 | 64 325 738 Spaces Moved 489 | 43 256 190 Core 8 | 8 . . Treads . | . . . Legs . | . . . Wheels 238 | 35 203 . Hover . | . . . Flight 243 | . 53 190 Fastest Speed 31 | 50 37 31 Average Speed 90 | 80 87 97 Slowest Speed 200 | 100 200 117 Overloaded Moves . | . . . Propulsion Burnouts . | . . . Robots Hopped . | . . . Cave-ins Triggered . | . . . Exploration Rate (%) 20 | 3 35 22 Regions Visited 2 Branch Regions . Pre-discovered Areas . | . . . Known Exits Taken . | . . . Unknown Exits Taken 2 | 1 1 . Scrap Searched . | . . . Spaces Dug . | . . . Terrain Destroyed 129 | . 62 67 Melee . | . . . Projectile . | . . . AOE 129 | . 62 67 Terrain Rammed . | . . . Walls Destroyed . | . . . Machines Disabled . | . . . Actions | -11 -10 -9 --------- Run | Scr Mat Mat Total 1108 | 65 326 717 Wait 496 | . 14 482 Move 487 | 42 255 190 Hop . | . . . Pick Up 24 | 7 13 4 Fast Attach . | . . . Attach 22 | 6 8 8 Detach 9 | 1 3 5 Swap 1 | . . 1 Drop 14 | 1 8 5 Fire 54 | 8 25 21 Melee . | . . . Ram 1 | . . 1 Kick . | . . . Crush . | . . . Escape Stasis . | . . . Rewire . | . . . Trap . | . . . Miscellaneous . | . . . Route ------- -11/Scrapyard -10/Materials -9/Materials History --------- Turn | Location | Event 5 | -11/Scrapyard | Discovered new exit (range 16) 65 | -11/Scrapyard | Entered Materials 226 | -10/Materials | Discovered new exit (range 14) 301 | -10/Materials | Build established: Mutant 390 | -10/Materials | Entered another Materials area 390 | -9/Materials | Evolved 2 slots: Propulsion x2 1115 | -9/Materials | Core integrity fell below 50% 1125 | -9/Materials | Core integrity fell below 20% 1128 | -9/Materials | Destroyed by Y-45 Defender with Beam Rifle Last Messages --------------- Imp. Ion Engine destroyed. ALERT: Construction progress impeded, dispatching reinforcements to local area. U-05 Engineer lays Concrete. U-05 Engineer builds a Wall. Heat Sink destroyed. Flight Unit destroyed. U-05 Engineer lays Concrete. Particle Cannon destroyed. U-05 Engineer builds a Wall. U-05 Engineer lays Concrete. U-05 Engineer destroyed. U-05 Engineer lays Concrete. Critical hit. Flight Unit destroyed. U-05 Engineer lays Concrete. U-05 Engineer builds a Wall. U-05 Engineer lays Concrete. Flight Unit destroyed. U-05 Engineer lays Concrete. Map ----- +----------------------------------------------------+ | [[#???# = | | !!#???# [!** | | T !!########+### #### # # ### ###### | | !!## # #?# [= # ##???? | | !!## #""" #?# # #????? | | # ######## #""" #?# # =! ##???? | | # ######?# #""" #?# # = # ##???? | | # ### """ """ # #?# # # ##???? | | # + """ """ #""" #?# # # ##???? | | ## ### """ """ #""" #?# # # #????? | | ## #?# #""" #?# #### ## #????? | | ! #?#####+##+## #?# ## # #????? | | ####### ??############ # # #????? | | ???????? # ####### #????? | | #####+##?##??????? # #????? | | ## ????# ??""" # ! #????? | | ! ## ????# """"" # = = [ "" #????? | | ##+##### ## ????# """"" # *"" T" ###??? | | ???????? #???????????# """ # """ "" ""#??? | | ???????? #???????????# # """ T"#??? | | ???????? #???????????# # ""#??? | | ?????????#???????????? # ###??? | | ???????????##??????????####+### """ """ #????? | | ??????????Y ####### # """ """ #????? | | ????????????#k u [ """ """ #????? | | ????????????# Y @u![ #????? | | ????????????# %[!]= #????? | | ????????????# #######=*%[ ###+###########????? | | ????????????#???????????####### ????????????????? | | ?????????????????????????#####? ??????????????? | | ??????????????????????????????? ?????????????? | | ??????????????????????????????? ?"" ""???????????? | | ??????????????????????????????? "?" ""???????????? | | ??????????????????????????????? "?" """??????????? | | ???????????????????????????????? ?? ???????????? | | ???????????????????????????????? ???? ???????????? | | ????????????????????????????????#????????????????? | | ?????????????????????????????????????????????????? | | ?????????????????????????????????????????????????? | | ?????????????????????????????????????????????????? | | ?????????????????????????????????????????????????? | | ?????????????????????????????????????????????????? | | ?????????????????????????????????????????????????? | | ?????????????????????????????????????????????????? | | ?????????????????????????????????????????????????? | | ?????????????????????????????????????????????????? | | ?????????????????????????????????????????????????? | | ?????????????????????????????????????????????????? | | ?????????????????????????????????????????????????? | | ?????????????????????????????????????????????????? | +----------------------------------------------------+ Best States ------------- Heat Dissipation 38 Energy Generation 12 Energy Capacity 265 Matter Stores 300 Matter Capacity 300 Sight Range 16 Terrain Scan Range 16 Terrain Scan Density 10 ECM Strength 1 Evasion (%) 63 Item Schematics ----------------- None Robot Schematics ------------------ None Fabricated ------------ Nothing Alien Tech Used ----------------- None Achievements -------------- None Challenges ------------ None Game ------ Seed DeepSmartbombProtection Manual? 0 Play Time 00:19:51 Cumulative 24.1 hours Start 2020.12.27 @ 14:24:14 End 2020.12.27 @ 14:42:29 Sessions 1 Manual Loads 0 Difficulty Rogue Special Mode None Game No. 30 Rogue 30 Adventurer 0 Explorer 0 Win Type - Total 0 Types 0/0/0/0/0/0/0/0/0 Lore% 10 Gallery% 15 Achievement% 14 Wizard Run 0 Options --------- ASCII 0 Keyboard 0 Movement Mouse Keybinds 0 Fullscreen 1 Font 18/SmallcapsGlow Map View 76x50 Tactical HUD 0 Map Filters NONE Filters NONE Steam 1 RUN: 52c140bd-40bd-4657-85bd-f1654915e804